bitfinex/quotes_BTCUSD_20240721
["timestamp","ask_amount","ask_price","bid_price","bid_amount"]
[1721529942756,0.196683,67463.0,67462.0,0.26928994]
[1721529943600,0.196683,67463.0,67462.0,0.39237403]
[1721529944221,0.196683,67463.0,67462.0,0.38637403]
[1721529944418,0.196683,67463.0,67462.0,0.39237403]
[1721529944905,0.118583,67463.0,67462.0,0.38637403]
[1721529945314,0.118583,67463.0,67462.0,0.39237403]
[1721529945534,0.118583,67463.0,67462.0,0.39237405]
[1721529945735,0.118583,67463.0,67462.0,0.38637405]
[1721529946145,0.118583,67463.0,67462.0,0.38537405]
[1721529946565,0.118583,67463.0,67462.0,0.39237405]
[1721529946795,0.118583,67463.0,67462.0,0.38537405]
[1721529947181,0.118583,67463.0,67462.0,0.39237405]
[1721529947391,0.118583,67463.0,67462.0,0.37937405]
[1721529947803,0.118583,67463.0,67462.0,0.39237405]
[1721529948253,0.118583,67463.0,67462.0,0.38637405]
[1721529948456,0.118583,67463.0,67462.0,0.39237405]
[1721529948871,0.118583,67463.0,67462.0,0.26928994]
[1721529949079,0.118583,67463.0,67462.0,0.39237405]
[1721529951407,0.118583,67463.0,67462.0,0.38637405]
[1721529951830,0.118583,67463.0,67462.0,0.39437405]
[1721529952708,0.118583,67463.0,67462.0,0.39437331]
[1721529955278,0.118583,67463.0,67462.0,0.27128994]
[1721529955490,0.118583,67463.0,67462.0,0.39437331]
[1721529957676,0.424742,67465.0,67464.0,0.008842]
[1721529957888,0.424742,67465.0,67464.0,0.28630711]
[1721529958097,0.424742,67465.0,67464.0,0.30129251]
[1721529958737,0.424742,67465.0,67464.0,0.30129326]
[1721529959154,0.18758,67465.0,67464.0,0.31229326]
[1721529960429,0.05,67466.0,67465.0,0.084542]
[1721529960635,0.05,67466.0,67465.0,0.48058786]
[1721529960890,0.05,67466.0,67465.0,0.49557141]
[1721529961318,0.05,67466.0,67465.0,0.49556741]
[1721529961942,0.05,67466.0,67465.0,0.50056741]
[1721529962177,0.05,67466.0,67465.0,0.79658697]
[1721529962608,0.05,67466.0,67465.0,0.80058697]
[1721529962807,0.05,67466.0,67465.0,0.79658697]
[1721529963449,0.05,67466.0,67465.0,0.56016741]
[1721529964527,0.05,67466.0,67465.0,0.56516435]
[1721529964969,0.05,67466.0,67465.0,0.74977892]
[1721529965187,0.05,67466.0,67465.0,0.80156166]
[1721529966033,0.05,67466.0,67465.0,0.56516435]
[1721529970058,0.05,67466.0,67465.0,0.44658435]
[1721529970915,0.05,67466.0,67465.0,0.44658367]
[1721529974152,0.05,67466.0,67465.0,0.44658435]
[1721529974558,0.05,67466.0,67465.0,0.44750835]
[1721529977426,0.05,67466.0,67465.0,0.32443129]
[1721529977642,0.05,67466.0,67465.0,0.44750835]
[1721529977864,0.05,67466.0,67465.0,0.32443129]
[1721529978078,0.05,67466.0,67465.0,0.44750835]
[1721529980653,0.05,67466.0,67465.0,0.44750767]
[1721529983986,0.05,67466.0,67465.0,0.32443129]
[1721529984197,0.05,67466.0,67465.0,0.44750837]
[1721529985776,0.05,67466.0,67465.0,0.68391371]
[1721529986614,0.05,67466.0,67465.0,0.44750837]
[1721529986829,0.05,67466.0,67465.0,0.68391431]
[1721529987044,0.05,67466.0,67465.0,0.80249431]
[1721529987269,0.05,67466.0,67465.0,0.32443129]
[1721529987483,0.05,67466.0,67465.0,0.68391256]
[1721529989244,0.05,67468.0,67467.0,0.008842]
[1721529989455,0.00084,67469.0,67468.0,0.273916]
[1721529989673,0.00084,67469.0,67468.0,1.21028324]
[1721529989877,0.00084,67469.0,67468.0,1.22526166]
[1721529991155,0.00084,67469.0,67468.0,0.99811266]
[1721529991609,0.00084,67469.0,67468.0,1.00611266]
[1721529992019,0.00084,67469.0,67468.0,0.99811266]
[1721529992422,0.00084,67469.0,67468.0,1.01111266]
[1721529993112,0.00084,67469.0,67468.0,1.00111266]
[1721529993521,0.00084,67469.0,67468.0,0.93957416]
[1721529993732,0.00084,67469.0,67468.0,1.24723754]
[1721529993935,0.00084,67469.0,67468.0,1.23823754]
[1721529994357,0.00084,67469.0,67468.0,1.25223754]
[1721529996754,0.00084,67469.0,67468.0,1.01508854]
[1721529997657,0.00084,67469.0,67468.0,0.70742516]
[1721529997881,0.00084,67469.0,67468.0,1.01508899]
[1721529998100,0.05084,67469.0,67468.0,0.51286599]
[1721529998329,0.05084,67469.0,67468.0,0.56464215]
[1721529998877,0.05084,67469.0,67468.0,0.32826769]
[1721530000360,0.05084,67469.0,67468.0,0.20520216]
[1721530000361,0.13354,67469.0,67468.0,0.20520216]
[1721530000591,0.13354,67469.0,67468.0,0.32827444]
[1721530000823,0.05084,67469.0,67468.0,0.32827444]
[1721530001235,0.169412,67469.0,67468.0,0.32827444]
[1721530001686,0.406557,67469.0,67468.0,0.32827444]
[1721530001899,0.406557,67469.0,67468.0,0.1650507]
[1721530002112,0.643702,67469.0,67468.0,0.1650507]
[1721530002325,0.726402,67469.0,67468.0,0.1650507]
[1721530002530,0.489257,67469.0,67468.0,0.1650507]
[1721530002766,0.53771416,67469.0,67468.0,0.15007228]
[1721530002970,0.53771416,67469.0,67468.0,0.16504934]
[1721530003393,0.53771416,67469.0,67468.0,0.15008214]
[1721530004755,0.53771416,67469.0,67468.0,0.15892414]
[1721530004952,0.53771416,67469.0,67468.0,0.15008214]
[1721530006581,0.53771416,67469.0,67468.0,0.15892378]
[1721530006582,0.169412,67469.0,67468.0,0.15892378]
[1721530007012,0.169412,67469.0,67468.0,0.17483104]
[1721530009968,0.169412,67469.0,67468.0,0.05174926]
[1721530010165,0.169412,67469.0,67468.0,0.1748314]
[1721530012804,0.05084,67469.0,67468.0,0.1748314]
[1721530013214,0.05084,67469.0,67468.0,0.05174926]
[1721530013420,0.23743971,67469.0,67468.0,0.16598943]
[1721530013624,0.23743971,67469.0,67468.0,0.04290726]
[1721530013826,0.23743971,67469.0,67468.0,0.16598943]
[1721530014424,0.35783971,67469.0,67468.0,0.16598943]
[1721530014629,0.31343971,67469.0,67468.0,0.16598943]
[1721530016403,0.31343971,67469.0,67468.0,0.16598907]
[1721530016848,0.23743971,67469.0,67468.0,0.16598907]
[1721530017958,0.47458471,67469.0,67468.0,0.16598907]
[1721530019606,0.47458471,67469.0,67468.0,0.04290726]
[1721530019816,0.47458471,67469.0,67468.0,0.16598996]
[1721530022206,0.47458471,67469.0,67468.0,0.16598907]
[1721530022414,0.71172971,67469.0,67468.0,0.16598907]
[1721530022621,2.03872971,67469.0,67468.0,0.16598907]
[1721530022827,2.40267471,67469.0,67468.0,0.16598907]
[1721530023053,2.44712564,67469.0,67468.0,0.15100581]
[1721530023873,2.44712564,67469.0,67468.0,0.12400581]
[1721530024325,2.44712564,67469.0,67468.0,0.12600581]
[1721530024723,2.44712564,67469.0,67468.0,0.12800581]
[1721530026420,2.40267471,67469.0,67468.0,0.12801196]
[1721530026647,2.40267471,67469.0,67468.0,0.12601196]
[1721530026849,2.40267471,67469.0,67468.0,0.12401196]
[1721530027485,2.44712074,67469.0,67468.0,0.12401196]
[1721530028566,2.44711554,67469.0,67468.0,0.12401232]
[1721530029418,2.40267471,67469.0,67468.0,0.12401232]
[1721530030274,2.40367471,67469.0,67468.0,0.12401232]
[1721530030751,2.40267471,67469.0,67468.0,0.12401232]
[1721530030967,2.40467471,67469.0,67468.0,0.12401232]
[1721530031794,2.40467471,67469.0,67468.0,0.12401165]
[1721530033516,2.36027471,67469.0,67468.0,0.12401165]
[1721530034945,2.36027471,67469.0,67468.0,0.000924]
[1721530035169,2.36027471,67469.0,67468.0,0.12401232]
[1721530038514,2.40471173,67469.0,67468.0,0.12401232]
[1721530038725,2.40471473,67469.0,67468.0,0.000924]
[1721530038936,2.40471473,67469.0,67468.0,0.12401242]
[1721530040173,2.36027471,67469.0,67468.0,0.12401242]
[1721530040388,2.40471473,67469.0,67468.0,0.12401242]
[1721530040856,2.88506844,67469.0,67468.0,0.000924]
[1721530041097,2.8061666,67469.0,67468.0,0.000924]
[1721530041525,3.05054834,67469.0,67468.0,0.000924]
[1721530041733,3.18390193,67469.0,67468.0,0.000924]
[1721530042149,3.05054834,67469.0,67468.0,0.000924]
[1721530042361,3.20686467,67469.0,67468.0,0.000924]
[1721530042563,3.20586467,67469.0,67468.0,0.000924]
[1721530042770,3.07354834,67469.0,67468.0,0.001924]
[1721530043193,3.07254834,67469.0,67468.0,0.001924]
[1721530043434,2.98154834,67469.0,67468.0,0.000924]
[1721530043659,3.07354834,67469.0,67468.0,0.002924]
[1721530044279,3.36069334,67469.0,67468.0,0.002924]
[1721530044493,1.097604,67466.0,67465.0,0.000924]
[1721530044711,0.523308,67463.0,67462.0,0.000924]
[1721530044922,0.86987863,67463.0,67462.0,0.000924]
[1721530045128,0.89287863,67463.0,67462.0,0.000924]
[1721530045345,1.04464567,67463.0,67462.0,0.000924]
[1721530045554,1.75614667,67463.0,67462.0,0.000924]
[1721530045978,1.75614667,67463.0,67462.0,0.001924]
[1721530045979,1.76014667,67463.0,67462.0,0.001924]
[1721530046198,1.76314667,67463.0,67462.0,0.002924]
[1721530046403,1.85314667,67463.0,67462.0,0.002924]
[1721530047256,1.85314667,67463.0,67444.0,0.144024]
[1721530047257,1.243809,67453.0,67444.0,0.144024]
[1721530047457,1.32936762,67453.0,67444.0,0.144024]
[1721530047656,1.243809,67453.0,67444.0,0.144024]
[1721530047869,1.2660133,67453.0,67444.0,0.144024]
[1721530048082,1.26601298,67453.0,67444.0,0.144024]
[1721530048294,1.4183623,67453.0,67444.0,0.144024]
[1721530048529,1.4213623,67453.0,67444.0,0.144024]
[1721530049157,1.4213623,67453.0,67444.0,0.066224]
[1721530049158,1.3423623,67453.0,67444.0,0.066224]
[1721530049366,1.34475832,67453.0,67450.0,0.0648]
[1721530050464,1.38912448,67453.0,67450.0,0.0648]
[1721530051093,1.34475832,67453.0,67450.0,0.0648]
[1721530051298,1.38912349,67453.0,67450.0,0.0648]
[1721530051509,1.34475832,67453.0,67450.0,0.0648]
[1721530056331,1.35370185,67453.0,67450.0,0.0648]
[1721530056538,1.43200185,67453.0,67447.0,0.07717479]
[1721530056961,1.35370185,67453.0,67447.0,0.07717479]
[1721530058872,1.44370185,67453.0,67446.0,0.1408]
[1721530059085,1.35370185,67453.0,67446.0,0.1408]
[1721530059967,1.44370185,67453.0,67446.0,0.1408]
[1721530060405,1.44370185,67453.0,67444.0,0.000924]
[1721530060406,0.880305,67445.0,67444.0,0.000924]
[1721530060650,0.921463,67445.0,67444.0,0.000924]
[1721530060900,1.158693,67445.0,67444.0,0.000924]
[1721530061097,1.258693,67445.0,67444.0,0.000924]
[1721530062241,1.352693,67445.0,67444.0,0.001924]
[1721530062445,1.4077323,67445.0,67444.0,0.001924]
[1721530062649,1.4977323,67445.0,67444.0,0.001924]
[1721530063346,1.4077323,67445.0,67444.0,0.001924]
[1721530063586,1.4127323,67445.0,67444.0,0.002924]
[1721530063785,1.5027323,67445.0,67444.0,0.002924]
[1721530064214,1.70151404,67445.0,67444.0,0.002924]
[1721530064377,1.70151404,67445.0,67433.0,0.000924]
[1721530064378,0.921599,67434.0,67433.0,0.000924]
[1721530064584,1.158868,67434.0,67433.0,0.000924]
[1721530064779,1.348868,67434.0,67433.0,0.000924]
[1721530065048,0.880588,67422.0,67421.0,0.4747]
[1721530065180,0.949588,67422.0,67421.0,0.4747]
[1721530066407,0.956588,67422.0,67421.0,0.4757]
[1721530066626,1.0923634,67422.0,67421.0,0.4757]
[1721530067606,1.1043634,67422.0,67421.0,0.4767]
[1721530067829,1.0973634,67422.0,67421.0,0.4757]
[1721530068391,1.1093634,67422.0,67421.0,0.4767]
[1721530069327,1.1093634,67422.0,67421.0,0.002]
[1721530070508,1.1093634,67422.0,67421.0,0.002924]
[1721530070690,1.1180553,67422.0,67421.0,0.002924]
[1721530073480,1.40359504,67422.0,67421.0,0.002924]
[1721530073685,1.40359504,67422.0,67411.0,0.000924]
[1721530073686,0.684523,67412.0,67411.0,0.000924]
[1721530073893,1.23525074,67412.0,67411.0,0.000924]
[1721530074085,1.21825074,67412.0,67411.0,0.000924]
[1721530074287,1.41443874,67412.0,67411.0,0.000924]
[1721530074792,1.41443874,67412.0,67411.0,0.001924]
[1721530074793,1.27943874,67412.0,67411.0,0.001924]
[1721530075045,1.34843874,67412.0,67411.0,0.001924]
[1721530075170,1.44643874,67412.0,67411.0,0.002924]
[1721530075572,1.4254484,67412.0,67411.0,0.002924]
[1721530075833,1.4742904,67412.0,67411.0,0.002924]
[1721530076038,1.5154484,67412.0,67411.0,0.002924]
[1721530077569,1.4742904,67412.0,67411.0,0.002924]
[1721530077779,1.5154484,67412.0,67411.0,0.002924]
[1721530078003,1.4742904,67412.0,67411.0,0.002924]
[1721530078411,1.3152904,67412.0,67411.0,0.002924]
[1721530078617,1.35643874,67412.0,67411.0,0.065424]
[1721530078821,1.28743874,67412.0,67411.0,0.065424]
[1721530079041,1.35643874,67412.0,67411.0,0.065424]
[1721530079253,1.35643874,67412.0,67411.0,0.002924]
[1721530079441,1.49619841,67412.0,67411.0,0.002924]
[1721530079867,1.58619841,67412.0,67411.0,0.002924]
[1721530080072,1.49619841,67412.0,67411.0,0.002924]
[1721530080286,1.58619841,67412.0,67411.0,0.002924]
[1721530080490,1.62735641,67412.0,67411.0,0.002924]
[1721530080895,1.67175641,67412.0,67411.0,0.002924]
[1721530081101,1.63059841,67412.0,67411.0,0.002924]
[1721530081555,1.58619841,67412.0,67411.0,0.002924]
[1721530081784,1.49619841,67412.0,67411.0,0.002924]
[1721530082001,0.914711,67412.0,67411.0,0.002924]
[1721530082202,0.964711,67412.0,67411.0,0.002924]
[1721530082753,0.658365,67412.0,67411.0,0.22069879]
[1721530082956,0.252673,67412.0,67411.0,0.22069879]
[1721530083207,0.252673,67412.0,67411.0,0.2354341]
[1721530083208,0.490019,67412.0,67411.0,0.2354341]
[1721530084245,0.252673,67412.0,67411.0,0.2354341]
[1721530084446,0.134,67412.0,67411.0,0.2442761]
[1721530084616,0.252673,67412.0,67411.0,0.2442761]
[1721530084841,0.245673,67412.0,67411.0,0.2432761]
[1721530085186,0.133,67412.0,67411.0,0.2432761]
[1721530085626,0.125,67412.0,67411.0,0.2422761]
[1721530085833,0.125,67412.0,67411.0,0.36545971]
[1721530086047,0.131,67412.0,67411.0,0.36545971]
[1721530086903,0.062,67412.0,67411.0,0.36545971]
[1721530087119,0.125,67412.0,67411.0,0.36545971]
[1721530087319,0.125,67412.0,67411.0,0.27944292]
[1721530087320,0.237673,67412.0,67411.0,0.27944292]
[1721530087497,0.2911741,67412.0,67411.0,0.51614036]
[1721530087701,0.2881741,67412.0,67411.0,0.51614036]
[1721530087900,0.237673,67412.0,67411.0,0.51614036]
[1721530088106,0.237673,67412.0,67411.0,0.51714036]
[1721530088331,0.237673,67412.0,67411.0,0.51814036]
[1721530088888,0.119,67412.0,67411.0,0.52698236]
[1721530090055,0.05,67412.0,67411.0,0.47505453]
[1721530090255,0.05,67412.0,67411.0,0.47505047]
[1721530091703,0.05,67412.0,67411.0,0.16710131]
[1721530091916,0.05,67412.0,67411.0,0.47505327]
[1721530092311,0.05,67412.0,67411.0,0.52697019]
[1721530093413,0.05,67412.0,67411.0,0.51812841]
[1721530093625,0.05,67412.0,67411.0,0.47505339]
[1721530093876,0.05,67412.0,67411.0,0.16710131]
[1721530094132,0.05,67412.0,67411.0,0.47504891]
[1721530096136,0.1726,67426.0,67411.0,0.47504891]
[1721530096137,0.05,67416.0,67415.0,0.269309]
[1721530096344,0.05,67416.0,67415.0,0.96897334]
[1721530096567,0.05,67416.0,67415.0,0.98369302]
[1721530096780,0.05,67416.0,67415.0,0.98365573]
[1721530097825,0.051,67416.0,67415.0,0.98565573]
[1721530098634,0.052,67416.0,67415.0,0.98765573]
[1721530099786,0.052,67416.0,67415.0,0.67974542]
[1721530099993,0.052,67416.0,67415.0,0.29252515]
[1721530100200,0.052,67416.0,67415.0,0.28368315]
[1721530100484,0.6742626,67416.0,67415.0,0.20758315]
[1721530100686,0.64533,67416.0,67415.0,0.14188315]
[1721530100832,0.881662,67416.0,67415.0,0.13988315]
[1721530101039,0.999244,67416.0,67415.0,0.13988315]
[1721530101434,0.998244,67416.0,67415.0,0.13788315]
[1721530101647,0.999244,67416.0,67415.0,0.13988315]
[1721530102823,0.999244,67416.0,67415.0,0.01671968]
[1721530103033,1.000244,67416.0,67415.0,0.12818675]
[1721530103281,1.000244,67416.0,67415.0,0.14290676]
[1721530103475,0.882662,67416.0,67415.0,0.14290676]
[1721530103679,0.881662,67416.0,67415.0,0.13990676]
[1721530104057,0.882662,67416.0,67415.0,0.14290676]
[1721530104283,0.9963122,67416.0,67415.0,0.14290676]
[1721530105059,0.7589802,67416.0,67415.0,0.14290676]
[1721530105268,0.052,67416.0,67415.0,0.29354876]
[1721530105681,0.052,67416.0,67415.0,0.41221576]
[1721530106202,0.052,67416.0,67415.0,0.29354876]
[1721530106629,0.052,67416.0,67415.0,0.17036201]
[1721530106802,0.052,67416.0,67415.0,0.29353429]
[1721530108241,0.170666,67416.0,67415.0,0.29353429]
[1721530108467,0.2115486,67416.0,67415.0,0.28469229]
[1721530109135,0.2115486,67416.0,67415.0,0.17036201]
[1721530109482,0.2115486,67416.0,67415.0,0.2935392]
[1721530110454,0.170666,67416.0,67415.0,0.2935392]
[1721530110860,0.407998,67416.0,67415.0,0.2846972]
[1721530111471,0.407998,67416.0,67415.0,0.1428972]
[1721530111472,0.64533,67416.0,67415.0,0.1428972]
[1721530111676,0.7509393,67416.0,67415.0,0.1428972]
[1721530111881,0.9882713,67416.0,67415.0,0.1428972]
[1721530112291,0.9882713,67416.0,67415.0,0.12817719]
[1721530112498,0.9882713,67416.0,67415.0,0.14295183]
[1721530113689,0.9882713,67416.0,67415.0,0.12817719]
[1721530115079,0.882662,67416.0,67415.0,0.12817719]
[1721530115724,0.882662,67416.0,67415.0,0.14296452]
[1721530116130,0.882662,67416.0,67415.0,0.1429645]
[1721530118750,0.882662,67416.0,67415.0,0.01977763]
[1721530118954,0.882662,67416.0,67415.0,0.14296264]
[1721530119168,0.882662,67416.0,67415.0,0.12818501]
[1721530119363,0.882662,67416.0,67415.0,0.14296213]
[1721530119768,0.99271347,67416.0,67415.0,0.14296213]
[1721530120149,1.00158281,67416.0,67415.0,0.14296213]
[1721530121966,1.00158281,67416.0,67415.0,0.14296334]
[1721530122375,1.36846455,67416.0,67415.0,0.14296334]
[1721530122580,1.60579655,67416.0,67415.0,0.01977712]
[1721530122783,1.69563982,67416.0,67415.0,0.005]
[1721530123007,1.71785179,67416.0,67415.0,0.005]
[1721530123417,1.6280039,67416.0,67415.0,0.002]
[1721530123624,0.830711,67412.0,67411.0,0.000924]
[1721530123852,1.003311,67412.0,67411.0,0.000924]
[1721530124088,1.15766057,67412.0,67411.0,0.000924]
[1721530124371,1.20209518,67412.0,67411.0,0.000924]
[1721530124564,1.15766057,67412.0,67411.0,0.000924]
[1721530125442,1.22431201,67412.0,67411.0,0.000924]
[1721530125671,1.2021098,67412.0,67411.0,0.000924]
[1721530125871,1.16666057,67412.0,67411.0,0.000924]
[1721530125981,1.2191098,67412.0,67411.0,0.000924]
[1721530126188,1.2101098,67412.0,67411.0,0.000924]
[1721530126385,1.2021098,67412.0,67411.0,0.000924]
[1721530126634,1.2171098,67412.0,67411.0,0.000924]
[1721530127238,1.11276023,67412.0,67411.0,0.000924]
[1721530127452,1.11276023,67412.0,67411.0,0.141324]
[1721530127453,0.895711,67412.0,67411.0,0.141324]
[1721530128022,0.651365,67412.0,67411.0,0.26451846]
[1721530128532,0.656365,67412.0,67411.0,0.27930342]
[1721530128960,0.656365,67412.0,67411.0,0.15610971]
[1721530128961,0.648365,67412.0,67411.0,0.15610971]
[1721530129162,0.648365,67412.0,67411.0,0.27930342]
[1721530129319,0.653365,67412.0,67411.0,0.26451771]
[1721530129924,0.653365,67412.0,67411.0,0.27930605]
[1721530130383,0.76332844,67412.0,67411.0,0.27930605]
[1721530130824,0.76332844,67412.0,67411.0,0.26451771]
[1721530131650,0.76332844,67412.0,67411.0,0.26451909]
[1721530132395,0.93592844,67412.0,67411.0,0.26451909]
[1721530132599,1.17327444,67412.0,67411.0,0.26451909]
[1721530132944,1.00067444,67412.0,67411.0,0.141324]
[1721530133613,0.890711,67412.0,67411.0,0.141324]
[1721530133822,0.93516342,67412.0,67411.0,0.141324]
[1721530134836,0.93516121,67412.0,67411.0,0.141324]
[1721530138299,0.93515205,67412.0,67411.0,0.141324]
[1721530140059,0.93515205,67412.0,67411.0,0.26452293]
[1721530141053,0.890711,67412.0,67411.0,0.26452194]
[1721530141172,0.93515205,67412.0,67411.0,0.26452194]
[1721530141377,0.890711,67412.0,67411.0,0.141324]
[1721530141584,0.890711,67412.0,67411.0,0.26452152]
[1721530142143,0.890711,67412.0,67411.0,0.27931367]
[1721530142144,0.959811,67412.0,67411.0,0.27931367]
[1721530142708,0.722465,67412.0,67411.0,0.28815567]
[1721530142907,0.485119,67412.0,67411.0,0.28815567]
[1721530143086,0.485119,67412.0,67411.0,0.27931367]
[1721530143706,0.485119,67412.0,67411.0,0.27930606]
[1721530143707,0.722465,67412.0,67411.0,0.27930606]
[1721530143910,0.79559713,67412.0,67411.0,0.27930606]
[1721530145387,0.72649713,67412.0,67411.0,0.27930606]
[1721530145644,0.79559713,67412.0,67411.0,0.27930606]
[1721530146517,0.06,67412.0,67411.0,0.28814806]
[1721530146728,0.01,67412.0,67411.0,1.03886837]
[1721530146941,0.01,67412.0,67411.0,1.45799652]
[1721530147681,0.005,67412.0,67411.0,1.45799652]
[1721530147885,0.05,67419.0,67411.0,0.86462452]
[1721530148088,0.05,67419.0,67418.0,0.58700379]
[1721530148299,0.05,67419.0,67418.0,0.86455978]
[1721530148710,0.05,67419.0,67418.0,0.5648422]
[1721530148965,0.05,67419.0,67418.0,0.4461802]
[1721530149080,0.16866,67419.0,67418.0,0.29179846]
[1721530149283,0.407981,67419.0,67418.0,0.20685646]
[1721530149495,0.407981,67419.0,67418.0,0.20385646]
[1721530149496,0.7168248,67419.0,67418.0,0.20385646]
[1721530149741,0.9531458,67419.0,67418.0,0.01478221]
[1721530149984,0.405998,67416.0,67415.0,0.0659]
[1721530150211,0.405998,67416.0,67415.0,0.18908663]
[1721530150619,0.405998,67416.0,67415.0,0.20385657]
[1721530151681,0.49947054,67416.0,67415.0,0.20385657]
[1721530151896,0.49947054,67416.0,67415.0,0.29179857]
[1721530151897,0.405998,67416.0,67415.0,0.29179857]
[1721530152096,0.406998,67416.0,67415.0,0.29479857]
[1721530152783,0.407998,67416.0,67415.0,0.29879857]
[1721530152985,0.407998,67416.0,67415.0,0.2987895]
[1721530153186,0.052,67416.0,67415.0,0.2987895]
[1721530153419,0.052,67416.0,67415.0,0.44866068]
[1721530153656,0.052,67416.0,67415.0,0.57183553]
[1721530154292,0.052,67416.0,67415.0,0.44432653]
[1721530154505,0.052,67416.0,67415.0,0.45316853]
[1721530156192,0.052,67416.0,67415.0,0.45316774]
[1721530157057,0.06925,67416.0,67415.0,0.45316774]
[1721530157475,0.187916,67416.0,67415.0,0.45316774]
[1721530158099,0.06925,67416.0,67415.0,0.45316774]
[1721530159429,0.06925,67416.0,67415.0,0.45316761]
[1721530160195,0.052,67416.0,67415.0,0.45316761]
[1721530162373,0.052,67416.0,67415.0,0.32999368]
[1721530162586,0.052,67416.0,67415.0,0.45316761]
[1721530163446,0.052,67416.0,67415.0,0.57183461]
[1721530166114,0.002,67416.0,67415.0,0.80916961]
[1721530166330,0.002,67416.0,67415.0,0.80916313]
[1721530166748,0.002,67416.0,67415.0,0.81008713]
[1721530166958,0.002,67416.0,67415.0,1.04742213]
[1721530167916,0.002,67416.0,67415.0,1.28412005]
[1721530168125,0.002,67416.0,67415.0,1.28410935]
[1721530168329,0.002,67416.0,67415.0,1.28411029]
[1721530168975,0.002,67416.0,67415.0,1.28410296]
[1721530170788,0.002,67416.0,67415.0,1.28410134]
[1721530172284,0.002,67416.0,67415.0,1.28410525]
[1721530172493,0.002,67416.0,67415.0,1.23215913]
[1721530174221,0.002,67416.0,67415.0,1.28410713]
[1721530175516,0.002,67416.0,67415.0,1.23216096]
[1721530176705,0.002,67416.0,67415.0,0.99482596]
[1721530177564,0.002,67416.0,67415.0,0.75749096]
[1721530177565,0.052,67416.0,67415.0,0.75749096]
[1721530177788,0.1879158,67416.0,67415.0,0.37498019]
[1721530178004,0.1879158,67416.0,67415.0,0.22059845]
[1721530178005,0.170666,67416.0,67415.0,0.22059845]
[1721530178224,0.170666,67416.0,67415.0,0.15469845]
[1721530178677,0.170666,67416.0,67415.0,0.03153594]
[1721530178896,0.170666,67416.0,67415.0,0.15470922]
[1721530179120,0.170666,67416.0,67415.0,0.03153594]
[1721530179353,0.170666,67416.0,67415.0,0.15470922]
[1721530184052,0.052,67416.0,67415.0,0.15470922]
[1721530184288,0.052,67416.0,67415.0,0.21780922]
[1721530185128,0.052,67416.0,67415.0,0.09463594]
[1721530185366,0.052,67416.0,67415.0,0.21780869]
[1721530186871,0.052,67416.0,67415.0,0.33647569]
[1721530187497,0.052,67416.0,67415.0,0.21780869]
[1721530187673,0.052,67416.0,67415.0,0.29490869]
[1721530188332,0.052,67416.0,67415.0,0.17173594]
[1721530188543,0.052,67416.0,67415.0,0.29490867]
[1721530191600,0.052,67416.0,67415.0,0.17173594]
[1721530191813,0.052,67416.0,67415.0,0.29490867]
[1721530192230,0.052,67416.0,67415.0,0.28606667]
[1721530192558,0.052,67416.0,67415.0,0.29490867]
[1721530192934,0.052,67416.0,67415.0,0.28606667]
[1721530193137,0.052,67416.0,67415.0,0.29490867]
[1721530200402,0.052,67416.0,67415.0,0.80529241]
[1721530200648,0.052,67416.0,67415.0,1.27933547]
[1721530200649,0.002,67416.0,67415.0,1.27933547]
[1721530201071,0.002,67416.0,67415.0,1.27929443]
[1721530201481,0.002,67416.0,67415.0,1.042621]
[1721530202840,0.002,67416.0,67415.0,1.27929695]
[1721530203223,0.002,67416.0,67415.0,1.042621]
[1721530203441,0.002,67416.0,67415.0,1.22737515]
[1721530203887,0.002,67416.0,67415.0,1.27931422]
[1721530204079,0.002,67416.0,67415.0,1.27931426]
[1721530204290,0.002,67416.0,67415.0,0.91945468]
[1721530204424,0.002,67416.0,67415.0,1.22737038]
[1721530204634,0.002,67416.0,67415.0,1.27930425]
[1721530206849,0.002,67416.0,67415.0,0.91945468]
[1721530207049,0.002,67416.0,67415.0,1.27931388]
[1721530210322,0.002,67416.0,67415.0,1.27931332]
[1721530213529,0.002,67416.0,67415.0,0.91945468]
[1721530213732,0.002,67416.0,67415.0,1.2793082]
[1721530214192,0.002,67416.0,67415.0,1.22737774]
[1721530214603,0.002,67416.0,67415.0,1.27930841]
[1721530215803,0.002,67416.0,67415.0,1.04197341]
[1721530216822,0.002,67416.0,67415.0,1.04197184]
[1721530218556,0.002,67416.0,67415.0,0.99004275]
[1721530220067,0.002,67416.0,67415.0,0.80528657]
[1721530220268,0.002,67416.0,67415.0,0.99003691]
[1721530223358,0.002,67416.0,67415.0,0.9900368]
[1721530223710,0.002,67416.0,67415.0,0.44478468]
[1721530223711,0.052,67416.0,67415.0,0.44478468]
[1721530223915,0.064284,67416.0,67415.0,0.63403483]
[1721530224155,0.064284,67416.0,67415.0,0.55693483]
[1721530224156,0.133284,67416.0,67415.0,0.55693483]
[1721530224580,0.133284,67416.0,67415.0,0.37218454]
[1721530226523,0.133284,67416.0,67415.0,0.37219332]
[1721530226724,0.121,67416.0,67415.0,0.37219332]
[1721530228326,0.121,67416.0,67415.0,0.30909332]
[1721530229844,0.121,67416.0,67415.0,0.30909345]
[1721530233390,0.052,67416.0,67415.0,0.30909345]
[1721530233600,0.052,67416.0,67415.0,0.30909171]
[1721530234769,0.052,67416.0,67415.0,0.37519171]
[1721530234970,0.052,67416.0,67415.0,0.57665871]
[1721530235616,0.052,67416.0,67415.0,0.81399371]
[1721530236362,0.052,67416.0,67415.0,0.86591021]
[1721530236689,0.052,67416.0,67415.0,0.5766534]
[1721530239693,0.052,67416.0,67415.0,0.57665519]
[1721530240985,0.08880177,67416.0,67415.0,0.57665519]
[1721530241209,0.052,67416.0,67415.0,0.57665519]
[1721530242837,0.052,67416.0,67415.0,0.45348468]
[1721530242969,0.052,67416.0,67415.0,0.57665519]
[1721530243176,0.052,67416.0,67415.0,0.45348468]
[1721530243392,0.052,67416.0,67415.0,0.57665519]
[1721530244702,0.052,67416.0,67415.0,0.45348468]
[1721530246625,0.052,67416.0,67415.0,0.81398964]
[1721530247163,0.052,67416.0,67415.0,0.69081968]